bitfinex/quotes_BTCUSD_20260117
["timestamp","ask_amount","ask_price","bid_price","bid_amount"]
[1768665904942,0.13735054,95506.0,95502.0,0.01047098]
[1768665905148,0.01047065,95505.0,95502.0,0.01047098]
[1768665905356,0.13735054,95506.0,95503.0,0.01047087]
[1768665905627,0.13735054,95506.0,95503.0,0.01041966]
[1768665905851,0.12688,95506.0,95503.0,0.01041966]
[1768665906061,0.13735021,95509.0,95506.0,0.01047054]
[1768665906261,0.01046977,95513.0,95509.0,0.01047021]
[1768665906472,0.01046977,95513.0,95507.0,0.66145577]
[1768665906473,0.01046988,95512.0,95507.0,0.66145577]
[1768665906679,0.01046988,95512.0,95507.0,0.01047043]
[1768665907316,0.0104701,95510.0,95505.0,0.01047065]
[1768665907702,0.0104701,95510.0,95504.0,0.05235368]
[1768665907703,0.06281612,95517.0,95508.0,0.01047032]
[1768665907909,1e-08,95517.0,95507.0,0.65098534]
[1768665908283,0.06281782,95515.0,95510.0,0.0104701]
[1768665908620,0.01046955,95515.0,95510.0,0.0104701]
[1768665908821,0.01046955,95515.0,95512.0,0.01046988]
[1768665909018,0.01046977,95513.0,95509.0,0.01047021]
[1768665909247,0.06281905,95513.0,95507.0,0.05235192]
[1768665909447,0.06281905,95513.0,95506.0,0.01047054]
[1768665909448,0.05234999,95511.0,95506.0,0.01047054]
[1768665909649,0.0104701,95510.0,95507.0,0.01047043]
[1768665909823,0.0104701,95510.0,95506.0,0.01047054]
[1768665909824,0.01047021,95509.0,95506.0,0.01047054]
[1768665910478,0.01047043,95507.0,95502.0,0.01047098]
[1768665910679,0.01047043,95507.0,95504.0,0.01047076]
[1768665910680,0.00736644,95507.0,95504.0,0.01047076]
[1768665910878,0.01047032,95508.0,95504.0,0.01047076]
[1768665911060,0.01047032,95508.0,95505.0,0.01047065]
[1768665911575,0.01047043,95507.0,95503.0,0.01047087]
[1768665911779,0.01047065,95505.0,95501.0,0.01047109]
[1768665911979,0.01047065,95505.0,95501.0,0.06282655]
[1768665912187,0.01047065,95505.0,95501.0,0.01047109]
[1768665913187,0.01047043,95507.0,95503.0,0.01047087]
[1768665913394,0.06282263,95507.0,95503.0,0.01047087]
[1768665913595,0.01047043,95507.0,95503.0,0.01047087]
[1768665913795,0.06282269,95507.0,95503.0,0.01047087]
[1768665914016,0.06282329,95506.0,95502.0,0.01047098]
[1768665914243,0.01047054,95506.0,95502.0,0.01047098]
[1768665914448,0.05235281,95506.0,95502.0,0.01047098]
[1768665914644,0.01047043,95507.0,95502.0,0.01047098]
[1768665915164,0.01047054,95506.0,95502.0,0.06282575]
[1768665915380,0.01047054,95506.0,95502.0,0.01047098]
[1768665916139,0.01047054,95506.0,95503.0,0.05649231]
[1768665916971,0.01047054,95506.0,95503.0,0.06696318]
[1768665917937,0.01047032,95508.0,95504.0,0.11931665]
[1768665918308,0.01047032,95508.0,95505.0,0.01047065]
[1768665918931,0.01047043,95507.0,95504.0,0.05649231]
[1768665919187,0.01047032,95508.0,95504.0,0.06696307]
[1768665919391,0.01047043,95507.0,95504.0,0.05649231]
[1768665919872,0.01047043,95507.0,95504.0,0.06696307]
[1768665920836,0.06282264,95507.0,95504.0,0.05649231]
[1768665921038,0.01047043,95507.0,95504.0,0.05649231]
[1768665921438,0.05235327,95506.0,95504.0,0.05649231]
[1768665922367,0.20939627,95513.0,95505.0,0.0225881]
[1768665922549,0.01046988,95512.0,95506.0,0.0225881]
[1768665922746,0.01046988,95512.0,95502.0,0.06282579]
[1768665922747,0.05235205,95508.0,95502.0,0.06282579]
[1768665923009,0.01047054,95506.0,95503.0,0.01047087]
[1768665923719,0.01047054,95506.0,95502.0,0.01047098]
[1768665924512,0.01047043,95507.0,95503.0,0.01047087]
[1768665924739,0.01047032,95508.0,95503.0,0.01047087]
[1768665924920,0.01047054,95506.0,95501.0,0.05235539]
[1768665925492,0.01047054,95506.0,95500.0,0.05235502]
[1768665925905,0.01047043,95507.0,95503.0,0.01047087]
[1768665926895,0.01047043,95507.0,95503.0,0.06282514]
[1768665927312,0.01047032,95508.0,95504.0,0.01047076]
[1768665927513,0.06282197,95508.0,95504.0,0.01047076]
[1768665927715,0.01047043,95507.0,95504.0,0.01047076]
[1768665928627,0.01047065,95505.0,95501.0,0.01047109]
[1768665928831,0.01047076,95504.0,95501.0,0.01047109]
[1768665929680,0.01047076,95504.0,95500.0,0.06282713]
[1768665929875,0.06282367,95506.0,95501.0,0.01047109]
[1768665929876,0.01047054,95506.0,95501.0,0.01047109]
[1768665930084,0.01047043,95507.0,95503.0,0.06282518]
[1768665930699,0.05234913,95513.0,95505.0,0.05235323]
[1768665931048,0.06282039,95511.0,95510.0,0.02823572]
[1768665931198,0.01047021,95509.0,95504.0,0.01047076]
[1768665931402,0.01047032,95508.0,95505.0,0.01047065]
[1768665932144,0.01047043,95507.0,95502.0,0.06282579]
[1768665932360,0.01047032,95508.0,95503.0,0.06282471]
[1768665933011,0.0104701,95510.0,95505.0,0.06282376]
[1768665933182,0.0104701,95510.0,95505.0,0.01047065]
[1768665933601,0.0104701,95510.0,95506.0,0.01047054]
[1768665933931,0.01047032,95508.0,95504.0,0.01047076]
[1768665934594,0.01047021,95509.0,95505.0,0.01047065]
[1768665935002,0.06282278,95507.0,95503.0,0.01047087]
[1768665935773,0.01047054,95506.0,95503.0,0.01047087]
[1768665936460,0.01047043,95507.0,95501.0,0.01047109]
[1768665936675,0.01047043,95507.0,95503.0,0.01047087]
[1768665936851,0.01047043,95507.0,95504.0,0.01047076]
[1768665937013,0.01047032,95508.0,95505.0,0.01047065]
[1768665938102,0.06281934,95512.0,95506.0,0.01047054]
[1768665938320,0.0104701,95510.0,95506.0,0.01047054]
[1768665939295,0.0104701,95510.0,95506.0,0.06282323]
[1768665939510,0.0104701,95510.0,95507.0,0.01047043]
[1768665940123,0.01047021,95509.0,95506.0,0.01047054]
[1768665940489,0.06282135,95509.0,95505.0,0.01047065]
[1768665941153,0.01047043,95507.0,95503.0,0.01047087]
[1768665941556,0.01047021,95509.0,95505.0,0.01047065]
[1768665941911,0.01047021,95509.0,95505.0,0.06282358]
[1768665942334,0.0104701,95510.0,95506.0,0.06282315]
[1768665942589,0.0104701,95510.0,95507.0,0.01047043]
[1768665943336,0.01046999,95511.0,95507.0,0.01047043]
[1768665943547,0.0104701,95510.0,95504.0,0.01047076]
[1768665943749,0.0104701,95510.0,95506.0,0.05235266]
[1768665944645,0.01046999,95511.0,95507.0,0.01047043]
[1768665944852,0.01046999,95511.0,95507.0,0.06282216]
[1768665945262,0.01046999,95511.0,95507.0,0.01047043]
[1768665945801,0.01046977,95513.0,95508.0,0.06282183]
[1768665946209,0.06281866,95513.0,95508.0,0.06282183]
[1768665946465,0.01046988,95512.0,95509.0,0.01047021]
[1768665946894,0.01046977,95513.0,95509.0,0.06282127]
[1768665947026,0.06281867,95513.0,95509.0,0.01047021]
[1768665947414,0.01046977,95513.0,95509.0,0.01047021]
[1768665947822,0.01046977,95513.0,95509.0,0.06282106]
[1768665948020,0.01046988,95512.0,95509.0,0.01047021]
[1768665948662,0.01046988,95512.0,95508.0,0.01047032]
[1768665948868,0.01046999,95511.0,95507.0,0.01047043]
[1768665949121,0.01046999,95511.0,95505.0,0.01047065]
[1768665949772,0.01047032,95508.0,95504.0,0.01047076]
[1768665949979,0.01047032,95508.0,95502.0,0.05648929]
[1768665949980,0.01047043,95507.0,95502.0,0.06696027]
[1768665950387,0.01047054,95506.0,95503.0,0.01047087]
[1768665950970,0.01047043,95507.0,95503.0,0.01047087]
[1768665951378,0.01047054,95506.0,95503.0,0.01047087]
[1768665951556,0.01047043,95507.0,95504.0,0.01047076]
[1768665952147,0.01047032,95508.0,95504.0,0.01047076]
[1768665952551,0.01047021,95509.0,95505.0,0.0481312]
[1768665952967,0.01046999,95511.0,95507.0,0.01047043]
[1768665953140,0.01046999,95511.0,95508.0,0.01047032]
[1768665953761,0.06282011,95511.0,95507.0,0.01047043]
[1768665954022,0.0104701,95510.0,95507.0,0.01047043]
[1768665954235,0.06282129,95509.0,95506.0,0.03766055]
[1768665954666,0.01047021,95509.0,95506.0,0.03766055]
[1768665955038,0.06282138,95509.0,95506.0,0.03766055]
[1768665955273,0.01047021,95509.0,95506.0,0.03766055]
[1768665955454,0.0104701,95510.0,95507.0,0.01047043]
[1768665956382,0.0104701,95510.0,95507.0,0.04813098]
[1768665956566,0.0104701,95510.0,95507.0,0.04793491]
[1768665956828,0.01046977,95513.0,95508.0,0.01047032]
[1768665956992,0.01046977,95513.0,95510.0,0.0104701]
[1768665958128,0.13734945,95516.0,95512.0,0.01046988]
[1768665958270,0.12688,95516.0,95513.0,0.01046977]
[1768665958882,0.01046935,95517.0,95513.0,0.06281864]
[1768665959082,1e-08,95517.0,95514.0,0.01046966]
[1768665959718,0.06281606,95517.0,95513.0,0.01046977]
[1768665960123,0.01046955,95515.0,95512.0,0.01046988]
[1768665960322,0.01046955,95515.0,95513.0,0.03766055]
[1768665960732,0.06281742,95515.0,95513.0,0.03766055]
[1768665960970,0.06281742,95515.0,95511.0,0.01046999]
[1768665961184,0.01046999,95511.0,95507.0,0.01047043]
[1768665961383,0.01046999,95511.0,95508.0,0.01047032]
[1768665961540,0.01046966,95514.0,95509.0,0.01047021]
[1768665961738,0.01046966,95514.0,95509.0,0.06282086]
[1768665962107,0.01046966,95514.0,95511.0,0.01046999]
[1768665963504,0.01046955,95515.0,95511.0,0.01046999]
[1768665964274,0.01046977,95513.0,95507.0,0.01047043]
[1768665964474,0.0104701,95510.0,95505.0,0.01047065]
[1768665964910,0.06282105,95510.0,95505.0,0.01047065]
[1768665965225,0.0104701,95510.0,95505.0,0.01047065]
[1768665965729,0.01047054,95506.0,95503.0,0.01047087]
[1768665965932,0.01047054,95506.0,95502.0,0.05235452]
[1768665966159,0.01047054,95506.0,95502.0,0.01047098]
[1768665966359,0.00296699,95501.0,95498.0,0.05235709]
[1768665966508,0.01047087,95503.0,95498.0,0.05235709]
[1768665966717,0.01047087,95503.0,95500.0,0.0104712]
[1768665966950,0.01047087,95503.0,95499.0,0.06282775]
[1768665967166,0.01047076,95504.0,95500.0,0.06282716]
[1768665967779,0.01047076,95504.0,95500.0,0.0104712]
[1768665968155,0.01047098,95502.0,95497.0,0.06282918]
[1768665968366,0.01038725,95502.0,95498.0,0.01047142]
[1768665968574,0.05235547,95501.0,95497.0,0.01047153]
[1768665968744,0.01038725,95502.0,95498.0,0.01047142]
[1768665968942,0.01038725,95502.0,95498.0,0.01027536]
[1768665969163,0.01038725,95502.0,95498.0,0.05235705]
[1768665969364,0.01047076,95504.0,95499.0,0.01047131]
[1768665969758,0.01047087,95503.0,95498.0,0.01047142]
[1768665970157,0.01047087,95503.0,95499.0,0.0669496]
[1768665970389,0.00575923,95502.0,95500.0,0.05576677]
[1768665971032,0.00472036,95505.0,95501.0,0.02259192]
[1768665971236,0.01047087,95503.0,95502.0,0.02259192]
[1768665971442,0.01047087,95503.0,95502.0,0.01259192]
[1768665971643,0.05707375,95505.0,95502.0,0.01259192]
[1768665971858,0.05707375,95505.0,95500.0,0.0104712]
[1768665972068,0.05707375,95505.0,95504.0,0.0376526]
[1768665972287,0.01047076,95504.0,95501.0,0.01047109]
[1768665972488,0.01047076,95504.0,95500.0,0.0104712]
[1768665972884,0.01047087,95503.0,95500.0,0.0104712]
[1768665973101,0.00675554,95503.0,95500.0,0.0104712]
[1768665973350,0.01047076,95504.0,95500.0,0.0104712]
[1768665974828,0.01047087,95503.0,95499.0,0.01047131]
[1768665975030,0.01047076,95504.0,95499.0,0.01047131]
[1768665976021,0.01047087,95503.0,95499.0,0.01047131]
[1768665976251,0.01047087,95503.0,95500.0,0.0104712]
[1768665977532,0.01047098,95502.0,95499.0,0.01047131]
[1768665977895,0.01047087,95503.0,95499.0,0.01007945]
[1768665978141,0.01047087,95503.0,95498.0,0.06282836]
[1768665978680,0.01047098,95502.0,95499.0,0.01047131]
[1768665978885,0.0104712,95500.0,95497.0,0.01047153]
[1768665979246,0.0104712,95500.0,95496.0,0.75695202]
[1768665979597,0.0104712,95500.0,95496.0,0.76742366]
[1768665979735,0.01047087,95503.0,95500.0,0.0104712]
[1768665981156,0.01047054,95506.0,95501.0,0.01047109]
[1768665981338,0.01047087,95503.0,95500.0,0.0104712]
[1768665981906,0.01047087,95503.0,95500.0,0.01027523]
[1768665982110,0.06282486,95504.0,95500.0,0.01027523]
[1768665982315,0.06262965,95503.0,95499.0,0.01047131]
[1768665982484,0.01027496,95503.0,95500.0,0.0104712]
[1768665982840,0.01027496,95503.0,95500.0,0.01027533]
[1768665983062,0.01047109,95501.0,95498.0,0.01047142]
[1768665985787,0.01047109,95501.0,95497.0,0.01047153]
[1768665987533,0.01027496,95503.0,95498.0,0.06282848]
[1768665987670,0.01027496,95503.0,95499.0,0.01047131]
[1768665989951,0.01047109,95501.0,95498.0,0.06282851]
[1768665990185,0.01047109,95501.0,95498.0,0.01047142]
[1768665992088,0.01047065,95505.0,95498.0,0.01047142]
[1768665992263,0.0104712,95500.0,95497.0,0.05648818]
[1768665992816,0.0104712,95500.0,95497.0,0.06695971]
[1768665993186,0.01047087,95503.0,95498.0,0.01047142]
[1768665993402,0.01047098,95502.0,95499.0,0.01047131]
[1768665994176,0.01047087,95503.0,95499.0,0.06282763]
[1768665995394,0.01047076,95504.0,95500.0,0.06282716]
[1768665995943,0.01047076,95504.0,95500.0,0.01042591]
[1768665996787,0.01047087,95503.0,95500.0,0.01042591]
[1768665997146,0.06282536,95503.0,95499.0,0.01047131]
[1768665997707,0.01047098,95502.0,95499.0,0.01047131]
[1768665998739,0.06282592,95502.0,95499.0,0.01047131]
[1768665998899,0.06282592,95502.0,95498.0,0.0669596]
[1768665999576,0.01047098,95502.0,95498.0,0.0669596]
[1768665999979,0.01047087,95503.0,95499.0,0.01047131]
[1768666000140,0.01047087,95503.0,95500.0,0.0104712]
[1768666001978,0.20939777,95514.0,95500.0,0.0104712]
[1768666002161,0.05235327,95505.0,95504.0,0.03767644]
[1768666002369,0.05235382,95504.0,95503.0,0.03767644]
[1768666002576,0.05235364,95505.0,95503.0,0.03767644]
[1768666002934,0.05235382,95504.0,95503.0,0.03767644]
[1768666003500,0.05235339,95505.0,95503.0,0.03767644]
[1768666003705,0.06282369,95506.0,95503.0,0.03767644]
[1768666004124,0.05235327,95505.0,95503.0,0.03767644]
[1768666004324,0.06282337,95506.0,95503.0,0.03748165]
[1768666004631,0.06282337,95506.0,95503.0,0.03728684]
[1768666005066,0.06282337,95506.0,95503.0,0.03724155]
[1768666006464,0.05235328,95505.0,95503.0,0.03724155]
[1768666007424,0.01047054,95506.0,95503.0,0.03724155]
[1768666007839,0.06282334,95506.0,95503.0,0.03724155]
[1768666008064,0.01047054,95506.0,95503.0,0.03724155]
[1768666008380,0.06282328,95506.0,95503.0,0.03724155]
[1768666009008,0.05235337,95505.0,95503.0,0.03724155]
[1768666009165,0.05235382,95504.0,95503.0,0.03724155]
[1768666009984,0.062826,95502.0,95496.0,0.03299993]
[1768666010170,0.01047076,95504.0,95499.0,0.01047131]
[1768666010377,0.01047076,95504.0,95500.0,0.0104712]
[1768666011335,0.01047076,95504.0,95501.0,0.01047109]
[1768666011546,0.01047076,95504.0,95501.0,0.01027626]
[1768666013060,0.01047076,95504.0,95501.0,0.01023097]
[1768666014324,0.01047065,95505.0,95501.0,0.01023097]
[1768666014766,0.01047076,95504.0,95499.0,0.01047131]
[1768666014970,0.05235447,95503.0,95498.0,0.01047142]
[1768666015202,0.01047065,95505.0,95499.0,0.06282787]
[1768666015386,0.06282467,95504.0,95501.0,0.01047109]
[1768666015581,0.06282467,95504.0,95500.0,0.0104712]
[1768666015990,0.01047087,95503.0,95500.0,0.0104712]
[1768666016144,0.00646441,95503.0,95500.0,0.0104712]
[1768666016352,0.05881889,95503.0,95499.0,0.01047131]
[1768666016553,0.00646441,95503.0,95499.0,0.06282785]
[1768666016761,0.00646441,95503.0,95499.0,0.01047131]
[1768666018075,0.00646441,95503.0,95499.0,0.06282775]
[1768666019464,0.00646441,95503.0,95500.0,0.0104712]
[1768666019631,0.00646441,95503.0,95500.0,0.06282715]
[1768666020040,0.00646441,95503.0,95501.0,0.05651488]
[1768666020864,0.05235374,95505.0,95501.0,0.05651488]
[1768666020998,0.01047076,95504.0,95501.0,0.05651488]
[1768666021200,0.01047131,95499.0,95496.0,0.02252829]
[1768666021406,0.01047131,95499.0,95496.0,0.07904]
[1768666022052,0.01047131,95499.0,95496.0,0.02252829]
[1768666022654,0.01047131,95499.0,95492.0,0.0001658]
[1768666022655,0.01047142,95498.0,95492.0,1e-08]
[1768666022857,0.05236095,95491.0,95490.0,1e-08]
[1768666023069,0.68372061,95491.0,95490.0,1e-08]
[1768666024094,0.01047328,95481.0,95477.0,0.13735372]
[1768666024288,0.01047328,95481.0,95474.0,0.01047405]
[1768666024289,0.6297726,95478.0,95474.0,0.01047405]
[1768666024622,0.01047383,95476.0,95473.0,0.0001589]
[1768666025822,0.01047372,95477.0,95474.0,0.01047405]
[1768666026027,0.64033515,95478.0,95475.0,0.01047394]
[1768666026028,8.894e-05,95478.0,95475.0,0.01047394]
[1768666027862,0.12688,95482.0,95479.0,0.0104735]
[1768666028064,0.01047295,95484.0,95480.0,0.01047339]
[1768666028265,0.12688,95481.0,95480.0,0.01047339]
[1768666029065,0.12688,95481.0,95480.0,0.06284037]
[1768666029264,0.12688,95481.0,95480.0,0.01047339]
[1768666029609,0.12688,95481.0,95480.0,0.06284037]
[1768666030603,0.12688,95481.0,95480.0,0.01047339]
[1768666031046,0.13735328,95481.0,95476.0,0.06284292]
[1768666031249,0.05236912,95477.0,95471.0,0.06284619]
[1768666031454,0.02095998,95480.0,95471.0,0.01047438]
[1768666031661,0.05236969,95476.0,95471.0,0.01047438]
[1768666031877,0.05236919,95476.0,95471.0,0.01047438]
[1768666032276,0.01047383,95476.0,95471.0,0.01047438]
[1768666032515,0.01047383,95476.0,95470.0,0.00047566]
[1768666032823,0.01047383,95476.0,95470.0,0.01095015]
[1768666033024,0.05237027,95474.0,95470.0,0.01095015]
[1768666033172,0.05237027,95474.0,95471.0,0.01047438]
[1768666033369,0.05236978,95475.0,95471.0,0.01047438]
[1768666034505,0.01047383,95476.0,95471.0,0.01047438]
[1768666034728,0.0523698,95475.0,95471.0,0.01047438]
[1768666035129,0.07333025,95474.0,95470.0,0.01095015]
[1768666035981,0.02095998,95474.0,95471.0,0.01047438]
[1768666036954,0.01047471,95468.0,95460.0,0.62305827]
[1768666037158,0.01047482,95467.0,95463.0,0.01077577]
[1768666037363,0.05237534,95465.0,95463.0,0.00030051]
[1768666037511,0.05237576,95464.0,95463.0,0.00030051]
[1768666037723,0.68214836,95464.0,95463.0,1e-08]
[1768666040242,0.01047548,95461.0,95458.0,0.0001039]
[1768666040452,0.01047603,95456.0,95452.0,0.01047646]
[1768666040659,0.01047614,95455.0,95452.0,0.00012853]
[1768666042453,0.01047614,95455.0,95447.0,0.01064971]
[1768666042454,0.01047712,95446.0,95443.0,0.0004]
[1768666042792,0.12692,95445.0,95443.0,0.0004]
[1768666043209,0.05238673,95444.0,95443.0,0.0004]
[1768666043420,0.12692,95445.0,95443.0,0.0004]
[1768666043575,0.02095997,95444.0,95443.0,0.0004]
[1768666044398,0.0733467,95444.0,95443.0,0.0004]
[1768666044621,0.02095997,95444.0,95443.0,0.0004]
[1768666047120,0.0733467,95444.0,95443.0,0.0004]
[1768666047343,0.02095997,95444.0,95443.0,0.0004]
[1768666047545,0.0733467,95444.0,95443.0,0.0004]
[1768666047743,0.02095997,95444.0,95443.0,0.0004]
[1768666048152,0.0733467,95444.0,95443.0,0.0004]
[1768666048874,0.02095997,95444.0,95443.0,0.0004]
[1768666049076,0.0733467,95444.0,95443.0,0.0004]
[1768666050700,0.02095997,95444.0,95443.0,0.0004]
[1768666052052,0.11644288,95444.0,95443.0,0.01087745]
[1768666052276,0.11644288,95444.0,95443.0,0.0004]
[1768666053428,0.12692,95448.0,95445.0,0.06286337]
[1768666053644,0.12692,95448.0,95445.0,0.01047723]
[1768666054471,0.12692,95448.0,95446.0,0.06286272]
[1768666054887,0.12692,95448.0,95443.0,0.01087745]
[1768666054888,0.1373969,95448.0,95443.0,0.01087745]
[1768666055103,0.1373969,95448.0,95445.0,0.01047723]
[1768666055727,0.01047701,95447.0,95443.0,0.01087745]
[1768666056365,0.01047701,95447.0,95444.0,0.01047734]
[1768666058082,0.01047701,95447.0,95444.0,0.06286407]
[1768666058506,0.12692,95448.0,95445.0,0.06286335]
[1768666059159,0.12692,95448.0,95445.0,0.01047723]
[1768666061232,0.01047701,95447.0,95443.0,0.01087745]
[1768666062212,0.12692,95448.0,95445.0,0.01047723]
[1768666062347,0.12692,95448.0,95445.0,0.06286302]
[1768666062548,0.0104769,95448.0,95445.0,0.01047723]
[1768666062756,0.01047679,95449.0,95445.0,0.06286339]
[1768666063176,0.01047679,95449.0,95441.0,0.01047767]
[1768666063177,0.01047767,95441.0,95436.0,0.01047822]
[1768666063415,0.06286627,95441.0,95436.0,0.01061999]
[1768666063622,0.06286627,95441.0,95436.0,0.00014177]
[1768666063623,0.01047789,95439.0,95436.0,0.00014177]
[1768666063832,0.06286774,95439.0,95436.0,0.00014177]
[1768666064050,0.05238985,95439.0,95436.0,0.00014177]
[1768666064884,0.06286679,95440.0,95436.0,0.00014177]
[1768666065109,0.01047789,95439.0,95436.0,0.00014177]
[1768666065746,0.06286744,95439.0,95436.0,0.00014177]
[1768666065978,0.05239058,95437.0,95436.0,0.00014177]
[1768666066393,0.01047789,95439.0,95436.0,0.00014177]
[1768666067034,0.06286756,95439.0,95436.0,0.00014177]
[1768666067272,0.01047789,95439.0,95436.0,0.00014177]
[1768666067685,0.05239003,95438.0,95436.0,0.00014177]
[1768666067940,0.06286747,95439.0,95436.0,0.00014177]
[1768666068941,0.05239018,95438.0,95436.0,0.00014177]
[1768666069139,0.01047756,95442.0,95436.0,0.00014177]
[1768666069140,0.01047723,95445.0,95437.0,0.01047811]
[1768666069340,0.0104769,95448.0,95445.0,0.01047723]
[1768666069562,0.0104769,95448.0,95445.0,0.01043194]
[1768666070160,0.12696,95449.0,95446.0,0.01047712]
[1768666070509,0.01047657,95451.0,95448.0,0.0104769]
[1768666070730,0.01047625,95454.0,95449.0,0.06286032]
[1768666070956,0.12696,95453.0,95450.0,0.0628601]
[1768666071085,0.12696,95453.0,95450.0,0.01047668]
[1768666071517,0.01047625,95454.0,95450.0,0.01047668]
[1768666071716,0.01047614,95455.0,95450.0,0.01047668]
[1768666071924,0.01047614,95455.0,95450.0,0.06286003]
[1768666072135,0.01047614,95455.0,95451.0,0.01047657]
[1768666072541,0.18981666,95456.0,95451.0,0.01047657]
[1768666072740,0.06285684,95455.0,95450.0,0.01047668]
[1768666072951,0.01047636,95453.0,95448.0,0.0104769]
[1768666073155,0.01047668,95450.0,95446.0,0.01047712]
[1768666074189,0.01047679,95449.0,95445.0,0.03754033]
[1768666074386,0.06286144,95448.0,95445.0,0.03754033]
[1768666074703,0.01047712,95446.0,95442.0,0.01047756]
[1768666074885,0.01047701,95447.0,95443.0,0.01047745]
[1768666075507,0.01047679,95449.0,95444.0,0.01047734]
[1768666076164,0.0104769,95448.0,95445.0,0.01047723]
[1768666076787,0.01047701,95447.0,95444.0,0.01047734]
[1768666076995,0.01047701,95447.0,95444.0,0.01043205]
[1768666077210,0.01047723,95445.0,95441.0,0.01047767]
[1768666077623,0.01047712,95446.0,95442.0,0.01047756]
[1768666077795,0.01047712,95446.0,95443.0,0.01047745]
[1768666078389,0.01047723,95445.0,95442.0,0.01047756]
[1768666079547,0.01047723,95445.0,95440.0,0.01047778]
[1768666080018,0.01047723,95445.0,95441.0,0.0523883]
[1768666080224,0.01047712,95446.0,95441.0,0.06286597]
[1768666080433,0.01047712,95446.0,95442.0,0.05238765]
[1768666080637,0.01047712,95446.0,95443.0,0.01047745]
[1768666080843,0.01047668,95450.0,95445.0,0.01047723]
[1768666081081,0.01047668,95450.0,95446.0,0.01047712]
[1768666081288,0.0104769,95448.0,95444.0,0.01047734]
[1768666082319,0.0104769,95448.0,95444.0,0.06286402]
[1768666082532,0.0104769,95448.0,95444.0,0.01047734]
[1768666083331,0.0104769,95448.0,95445.0,0.01047723]
[1768666083776,0.01047668,95450.0,95446.0,0.01047712]
[1768666084191,0.01047679,95449.0,95446.0,0.01047712]
[1768666084601,0.01047668,95450.0,95447.0,0.01047701]
[1768666084813,0.01047657,95451.0,95447.0,0.06286205]
[1768666085013,0.01047614,95455.0,95451.0,0.01047657]
[1768666085216,0.01047636,95453.0,95448.0,0.0104769]
[1768666085560,0.01047646,95452.0,95448.0,0.0104769]
[1768666086000,0.01047581,95458.0,95449.0,0.01047679]
[1768666086214,0.05237792,95461.0,95448.0,0.91824102]
[1768666086215,0.06285408,95460.0,95448.0,0.91824102]
[1768666086420,0.01047559,95460.0,95455.0,0.01047614]
[1768666086623,0.01047559,95460.0,95456.0,0.05238013]
[1768666087062,0.01047559,95460.0,95455.0,0.01047614]
[1768666087295,0.01047559,95460.0,95457.0,0.01047592]
[1768666087502,0.01038499,95460.0,95457.0,0.01047592]
[1768666088452,0.01047493,95466.0,95461.0,0.01047548]
[1768666088908,0.01047493,95466.0,95462.0,0.01047537]
[1768666089292,0.01047504,95465.0,95462.0,0.01047537]
[1768666089496,0.01047493,95466.0,95462.0,0.01047537]
[1768666089707,0.01047504,95465.0,95462.0,0.01047537]
[1768666089894,0.01047493,95466.0,95462.0,0.01047537]
[1768666090466,0.13743482,95467.0,95463.0,0.01047526]
[1768666090640,0.18980909,95467.0,95463.0,0.01047526]
[1768666090874,0.01047493,95466.0,95461.0,0.06285259]
[1768666091465,0.12696,95467.0,95463.0,0.06285145]
[1768666091637,0.12696,95467.0,95464.0,0.0628505]
[1768666091836,0.12696,95467.0,95466.0,0.05237466]
[1768666092920,0.01076827,95472.0,95468.0,0.01047471]
[1768666093126,0.01047449,95470.0,95465.0,0.01047504]
[1768666093336,0.01047449,95470.0,95466.0,0.01047493]
[1768666093988,0.0104746,95469.0,95464.0,0.01047515]
[1768666094194,0.01047482,95467.0,95464.0,0.01047515]
[1768666094405,0.0104746,95469.0,95465.0,0.01047504]
[1768666094609,0.0104746,95469.0,95466.0,0.01047493]
[1768666095667,0.01047449,95470.0,95466.0,0.01047493]
[1768666095876,0.01047449,95470.0,95467.0,0.01047482]
[1768666096295,0.01047438,95471.0,95467.0,0.01047482]
[1768666096963,0.06284696,95470.0,95466.0,0.01047493]
[1768666097165,0.01047449,95470.0,95466.0,0.01047493]
[1768666098000,0.01047449,95470.0,95466.0,0.06284952]
[1768666098175,0.01047449,95470.0,95467.0,0.01047482]
[1768666099057,0.01047438,95471.0,95468.0,0.01047471]
[1768666099271,0.13772827,95472.0,95469.0,0.0104746]
[1768666100127,0.0104746,95469.0,95466.0,0.01047493]
[1768666100416,0.01076827,95472.0,95466.0,0.01047493]
[1768666100549,0.01076827,95472.0,95469.0,0.0104746]
[1768666101875,0.000294,95472.0,95469.0,0.0104746]
[1768666102288,0.000294,95472.0,95470.0,0.02257413]
[1768666102512,0.000294,95472.0,95471.0,0.02257413]
[1768666104212,0.01076827,95472.0,95467.0,0.01047482]
[1768666104638,0.01076827,95472.0,95467.0,0.0628489]
[1768666104845,0.01076827,95472.0,95468.0,0.01047471]
[1768666105658,0.01076827,95472.0,95468.0,0.06284827]
[1768666106315,0.01076827,95472.0,95468.0,0.01047471]
[1768666106508,0.01076827,95472.0,95468.0,0.06284823]
[1768666109137,0.0104746,95469.0,95465.0,0.06285005]
[1768666109355,0.0091741,95470.0,95466.0,0.01047493]
[1768666110355,0.0104746,95469.0,95466.0,0.01047493]
[1768666111356,0.0104746,95469.0,95466.0,0.06284954]
[1768666111559,0.0091741,95470.0,95466.0,0.06284954]
[1768666111761,0.0091741,95470.0,95467.0,0.01047482]
[1768666113068,0.0091741,95470.0,95467.0,0.06284888]
[1768666113416,0.01047438,95471.0,95467.0,0.06284888]
[1768666114396,0.01047449,95470.0,95467.0,0.01047482]
[1768666114617,0.0104746,95469.0,95466.0,0.01047493]
[1768666115257,0.01047449,95470.0,95466.0,0.06284958]
[1768666115456,0.04027011,95464.0,95460.0,0.02714517]
[1768666115664,0.04027011,95464.0,95459.0,0.0104757]
[1768666115665,0.05237529,95465.0,95459.0,0.06285413]
[1768666116303,0.05237529,95465.0,95460.0,0.02257985]
[1768666116493,0.05237529,95465.0,95461.0,0.02257985]
[1768666116696,0.05237529,95465.0,95462.0,0.02257985]
[1768666116914,0.01047515,95464.0,95463.0,0.02257985]
[1768666117351,0.06285091,95464.0,95463.0,0.02257985]
[1768666117744,0.06285294,95461.0,95458.0,0.01047581]
[1768666117950,0.01047559,95460.0,95456.0,0.01047603]
[1768666118638,0.01047559,95460.0,95457.0,0.01047592]
[1768666118867,0.01047548,95461.0,95458.0,0.01047581]
[1768666119301,1e-08,95456.0,95453.0,0.06693022]
[1768666119516,1e-08,95456.0,95452.0,0.13739646]
[1768666120176,1e-08,95456.0,95452.0,0.18977878]
[1768666120791,1e-08,95456.0,95452.0,0.13739646]
[1768666121378,0.06084759,95457.0,95452.0,0.13739646]
[1768666121820,0.00846788,95457.0,95452.0,0.13739646]
[1768666121976,0.01047603,95456.0,95453.0,0.01047636]
[1768666122180,0.0628565,95456.0,95452.0,0.13739646]
[1768666122381,0.01047614,95455.0,95452.0,0.13739646]
[1768666122722,0.06085011,95455.0,95452.0,0.12692]
[1768666123105,0.00846924,95455.0,95452.0,0.12692]
[1768666123300,0.01047603,95456.0,95452.0,0.13739646]
[1768666123504,0.01047603,95456.0,95453.0,0.01047636]
[1768666123856,0.00846788,95457.0,95453.0,0.06285814]